Cogmind - Beta 14 *** ADVENTURER MODE // 2024.10.19 @ 11:41:38 Player: Gilgameshx13 Result: Destroyed by G-47 Trooper with Particle Gun Performance ------------- Evolutions (2) 1000 Regions Visited (5) 1000 Robots Destroyed (58) 290 Value Destroyed (1758) 1758 Prototype IDs (4) 80 Alien Tech Used (0) 0 Bonus (219) 219 TOTAL SCORE: 4347 Bonus ------- High Alert Combat Kills 19 Entered Garrisons 200 Cogmind --------- Core Integrity 0/550 Matter 32/300 Energy 100/100 System Corruption 3% Temperature Cool (18) Movement Core (550) Ox10 Location -8/Garrison Parts ------- > --- POWER (2) -------- (None) > --- PROPULSION (3) --- (None) > --- UTILITY (4) ------ Improved Heat Sink Large Storage Unit Improved Weapon Shielding > --- WEAPON (2) ------- Mini Assault Cannon Mini Assault Cannon > --- INVENTORY (15) --- Light Nuclear Core Improved Deuterium Engine Improved Deuterium Engine Xenon Bombardment Thruster Xenon Bombardment Thruster Xenon Bombardment Thruster Xenon Bombardment Thruster Improved Heat Sink Large Storage Unit Advanced Weight Redist. System ECM Suite Hacking Suite Heavy Assault Cannon Rocket Launcher Peak State ------------ > --- POWER ------------ Improved Deuterium Engine Improved Deuterium Engine > --- PROPULSION ------- Xenon Bombardment Thruster Xenon Bombardment Thruster Xenon Bombardment Thruster > --- UTILITY ---------- Improved Heat Sink Large Storage Unit Advanced Weight Redist. System Improved Light Armor Plating > --- WEAPON ----------- Mini Assault Cannon Mini Assault Cannon > --- INVENTORY -------- Light Nuclear Core Improved Deuterium Engine Improved Deuterium Engine Light Treads Light Treads Advanced Treads Xenon Bombardment Thruster Improved Heat Sink Large Storage Unit ECM Suite Improved Weapon Shielding Hacking Suite Heavy Assault Cannon Rocket Launcher [Rating: 43] Favorites ----------- Power Light Ion Engine Engine Light Ion Engine Power Core Light Nuclear Core Propulsion Light Treads Treads Light Treads Leg Aluminum Leg Wheel Wheel Flight Unit Xenon Bombardment Thruster Utility Large Storage Unit Device Heat Sink Storage Large Storage Unit Protection Light Armor Plating Weapon Heavy Assault Rifle Energy Gun Beam Rifle Ballistic Gun Heavy Assault Rifle Ballistic Cannon Mini Assault Cannon Impact Weapon Flail Build | -11 -10 -10 -9 -8 -8 ------- Run | Yrd Mat Min Mat Mat Gar Slots Evolved 4 | . . . 2 2 . Power 1 | . . . . 1 . Propulsion 1 | . . . 1 . . Utility 2 | . . . 1 1 . Weapon . | . . . . . . Parts Attached 59 | 6 6 . 10 30 7 Power 12 | 1 1 . 1 9 . Engine 11 | 1 1 . 1 8 . Core 1 | . . . . 1 . Reactor . | . . . . . . Propulsion 20 | 2 1 . 6 5 6 Treads 11 | . . . 3 5 3 Leg 3 | . . . 3 . . Wheel 3 | 2 1 . . . . Hover . | . . . . . . Flight 3 | . . . . . 3 Utility 14 | 1 3 . 1 8 1 Device 9 | . 2 . 1 6 . Storage 2 | 1 1 . . . . Processor . | . . . . . . Hackware . | . . . . . . Protection 3 | . . . . 2 1 Artifact . | . . . . . . Weapon 13 | 2 1 . 2 8 . Energy Gun 1 | . . . . 1 . Energy Cannon . | . . . . . . Ballistic Gun 8 | 2 1 . 2 3 . Ballistic Cannon 3 | . . . . 3 . Launcher . | . . . . . . Special Weapon . | . . . . . . Impact Weapon 1 | . . . . 1 . Slashing Weapon . | . . . . . . Piercing Weapon . | . . . . . . Special Melee Weapon . | . . . . . . Unidentified Prototypes 1 | . . . . 1 . Parts Lost 20 | . . . 1 13 6 Power 7 | . . . . 5 2 Propulsion 8 | . . . 1 4 3 Utility 2 | . . . . 1 1 Weapon 3 | . . . . 3 . Highest Loss Streak 11 | . . . 1 11 5 To Critical Strikes . | . . . . . . Average Slot Usage (%) 87 | . 93 100 82 85 95 Engine 11 | . 14 14 11 10 17 Core 1 | . . . . 2 . Treads 13 | . . . . 21 21 Leg 4 | . . . 9 4 . Wheel 5 | . 27 28 8 . . Device 18 | . 9 14 19 20 11 Storage 10 | . 14 14 11 9 9 Protection 4 | . . . . 5 16 Ballistic Gun 9 | . 26 28 22 2 . Ballistic Cannon 5 | . . . . 6 18 Peak Build Rating 43 | 6 7 7 12 37 43 Average Rating 16 | 4 6 7 9 18 36 On Entrance 11 | . 6 7 7 12 37 Naked Turns . | . . . . . . Heaviest Build 56 | 13 27 27 33 56 54 Greatest Support 71 | 26 26 26 30 71 71 Greatest Overweight (x) 14 | . 1 1 3 1 14 Average Overweight (x) . | . . 1 2 . . Largest Inventory Capacity 15 | 8 15 15 15 15 15 Average Capacity 14 | 7 11 15 15 15 15 Most Carried 15 | 7 10 9 15 15 15 Average Carried 12 | 4 7 9 14 12 15 Final Capacity 15 | 8 15 15 15 15 15 Final Carried 15 | 6 9 9 15 15 15 Class Distribution -------------------- 55% | Mutant 44% | Scavenger-Mutant Dominant Class ---------------- Mutant | -10/Materials Mutant | -10/Mines Mutant | -9/Materials Scavenger-Mutant | -8/Materials Mutant | -8/Garrison Resources | -11 -10 -10 -9 -8 -8 ----------- Run | Yrd Mat Min Mat Mat Gar Matter Collected 1367 | 190 77 45 274 581 200 Remotely . | . . . . . . Salvage Created 1726 | . 77 45 428 983 193 Parts 103 | . 5 6 31 41 20 Haulers Intercepted . | . . . . . . Recyclers Shooed . | . . . . . . Parts Field Recycled . | . . . . . . Retrieved Matter . | . . . . . . Parts Self-Destructed . | . . . . . . Prevented . | . . . . . . Kills | -11 -10 -10 -9 -8 -8 ------- Run | Yrd Mat Min Mat Mat Gar Combat Hostiles Destroyed 55 | . 2 3 14 22 14 Melee 2 | . . . . 2 . Guns 23 | . 2 3 14 4 . Cannons 25 | . . . . 12 13 Classes Destroyed 8 | . 1 1 1 4 1 Recycler 2 | . . . . 2 . Watcher 1 | . . . . 1 . Swarmer 22 | . . 3 6 4 9 Grunt 18 | . 2 . 5 11 . Brawler 1 | . . . . 1 . Duelist 1 | . . . . 1 . Sentry 10 | . . . 3 5 2 Programmer 3 | . . . . . 3 Best Kill Streak 10 | . 2 3 6 5 10 Combat Bots Only 10 | . 2 3 6 4 10 Max Kills in Single Turn 2 | . 1 2 2 2 1 Gunslinging 1 | . . 1 1 . . Exploded . | . . . . . . Melee 1 | . . . . 1 . Uniques/NPCs Destroyed . | . . . . . . Combat | -11 -10 -10 -9 -8 -8 -------- Run | Yrd Mat Min Mat Mat Gar Hostile Shots Fired 397 | . 11 2 56 184 144 Missed 114 | . 4 1 15 51 43 Damage Taken 3089 | . 60 6 342 1730 951 Core 643 | . . 6 76 402 159 Absorbed by Shields . | . . . . . . Redirected to Shielding 52 | . . . . . 52 Ignored by Resistances 913 | . 19 2 106 494 292 Core Remaining (%) 92 | 100 . 97 81 . . Volleys Fired 127 | . 5 2 30 56 34 Largest 2 | . 2 2 2 2 2 Hottest 96 | . 40 40 46 96 96 Shots Fired 220 | . 10 4 60 78 68 Gun 117 | . 10 4 60 43 . Cannon 103 | . . . . 35 68 Launcher . | . . . . . . Special . | . . . . . . Kinetic 201 | . 10 4 60 59 68 Thermal 19 | . . . . 19 . Explosive . | . . . . . . Electromagnetic . | . . . . . . Robot Hit Streak 21 | . 7 10 15 21 4 Robot Miss Streak 5 | . 2 . 3 3 5 Penetration Max 1 | . . . . 1 . Secondary Targets 6 | . 1 1 2 2 . Max Gunslinging Chain 1 | . 1 1 1 1 . Shots Hit Robots 176 | . 7 3 46 80 40 Core Hits 74 | . 4 3 21 32 14 Critical Kills 3 | . . . 3 . . Critical Parts Destroyed 1 | . . . . 1 . Critical Strikes 11 | . . . 3 6 2 Destroy 3 | . . . 3 . . Blast 7 | . . . . 5 2 Smash 1 | . . . . 1 . Melee Attacks 21 | . . . . 21 . Impact 21 | . . . . 21 . Slashing . | . . . . . . Piercing . | . . . . . . Sneak Attacks 3 | . . . . 3 . Combat Hostiles . | . . . . . . Follow-up Attacks . | . . . . . . Damage Inflicted 4509 | . 93 33 615 2572 1196 Guns 1311 | . 86 33 615 577 . Cannons 2450 | . . . . 1254 1196 Explosions . | . . . . . . Melee 741 | . . . . 741 . Ramming 7 | . 7 . . . . Kinetic 3528 | . 86 33 615 1598 1196 Thermal 233 | . . . . 233 . Explosive . | . . . . . . Electromagnetic . | . . . . . . Impact 741 | . . . . 741 . Slashing . | . . . . . . Piercing . | . . . . . . Highest Corruption 3 | . . . . . 3 Average Corruption 2 | . . . . . 2 Corruption Purged . | . . . . . . Corruption Blocked . | . . . . . . Effects 2 | . . . . . 2 Message Errors 1 | . . . . . 1 Heat Flow Errors 1 | . . . . . 1 Overload Shots . | . . . . . . Overflow Damage 358 | . . . . 250 108 Projectiles 181 | . . . . 73 108 Explosions . | . . . . . . Melee 177 | . . . . 177 . Knockbacks 21 | . . . . 9 12 Impact 5 | . . . . 5 . Kinetic 15 | . . . . 4 11 Secondary 1 | . . . . . 1 Self-Inflicted Damage 3 | . 3 . . . . Shots . | . . . . . . Rammed 1 | . 1 . . . . Targets Rammed 1 | . 1 . . . . Kicked . | . . . . . . Crushed . | . . . . . . Highest Temperature 128 | . 6 . 6 84 128 Average Temperature 27 | . 6 . 5 25 30 Received Heat Transfer 1659 | . 42 . 123 1116 378 Siege Activations . | . . . . . . Robots Corrupted 6 | . . . . 5 1 Combat Hostiles 5 | . . . . 4 1 Parts Fried 2 | . . . . 2 . Impact Corruptions 7 | . . . . 6 1 Robots Melted . | . . . . . . Combat Hostiles . | . . . . . . Parts Melted . | . . . . . . Heat Transferred 592 | . . . . 592 . Parts Sabotaged . | . . . . . . Parts Stolen . | . . . . . . Parts Stripped . | . . . . . . Power Chain Reactions . | . . . . . . Alert | -11 -10 -10 -9 -8 -8 ------- Run | Yrd Mat Min Mat Mat Gar Peak Influence 429 | . 78 110 406 429 375 Initial 90 | . . 25 36 90 5 Average 158 | . 41 109 203 164 203 Maximum Alert Level 2 | . . . 2 2 1 Low Security (%) 62 | 100 100 100 43 63 39 Level 1 35 | . . . 49 35 60 Level 2 1 | . . . 6 . . Level 3 . | . . . . . . Level 4 . | . . . . . . Level 5 . | . . . . . . High Security . | . . . . . . Max Security . | . . . . . . Squads Dispatched 2 | . . . 1 1 . Investigation 1 | . . . 1 . . Extermination . | . . . . . . Reinforcement 1 | . . . . 1 . Assault . | . . . . . . Garrison . | . . . . . . Intercept . | . . . . . . Searches Triggered . | . . . . . . Construction Impeded . | . . . . . . Haulers Reinforced . | . . . . . . Active Scanning Responses . | . . . . . . Cargo Convoy Interrupts . | . . . . . . Stealth | -11 -10 -10 -9 -8 -8 --------- Run | Yrd Mat Min Mat Mat Gar Distress Signals 3 | . . . 2 1 . Communications Jammed . | . . . . . . Distress Signals . | . . . . . . Times Spotted 82 | . 4 1 20 36 21 Peak Tracking Total 8 | . 3 . 5 8 7 Tactical Retreats 8 | . . . . 7 1 Traps | -11 -10 -10 -9 -8 -8 ------- Run | Yrd Mat Min Mat Mat Gar Traps Triggered 3 | . 2 . . . 1 Indirectly . | . . . . . . Trap Hack Attempts . | . . . . . . Triggered . | . . . . . . Disarmed . | . . . . . . Reprogrammed . | . . . . . . Reused . | . . . . . . Traps Extracted . | . . . . . . Installed . | . . . . . . Triggered . | . . . . . . Machines | -11 -10 -10 -9 -8 -8 ---------- Run | Yrd Mat Min Mat Mat Gar Machines Disabled 3 | . . . 2 . 1 Max in Single Turn 1 | . . . 1 . 1 Machines Repaired . | . . . . . . Machines Dismantled . | . . . . . . Machines Sabotaged . | . . . . . . Overloaded Fab Kills . | . . . . . . Hacking | -11 -10 -10 -9 -8 -8 --------- Run | Yrd Mat Min Mat Mat Gar Machines Accessed 10 | . 3 . 2 5 . Terminals 9 | . 3 . 2 4 . Fabricators . | . . . . . . Repair Stations . | . . . . . . Recycling Units . | . . . . . . Scanalyzers . | . . . . . . Garrison Access 1 | . . . . 1 . Total Hacks 36 | . 11 . 10 15 . Successful 22 | . 7 . 4 11 . Failed 14 | . 4 . 6 4 . Catastrophic . | . . . . . . Database Lockouts . | . . . . . . Manual 21 | . 4 . 8 9 . Terminals 35 | . 11 . 10 14 . Fabricators . | . . . . . . Repair Stations . | . . . . . . Recycling Units . | . . . . . . Scanalyzers . | . . . . . . Garrison Access 1 | . . . . 1 . Terminal Hacks 8 | . 4 . 1 3 . Prototype ID Bank 2 | . 1 . . 1 . Branch Access Points 1 | . 1 . . . . Emergency Access Points 1 | . 1 . . . . Alert Level 1 | . . . . 1 . Unreport Threat 1 | . . . . 1 . Dispatch Records 1 | . . . 1 . . Recall Investigation 1 | . 1 . . . . Fabricator Hacks . | . . . . . . Repair Station Hacks . | . . . . . . Recycling Unit Hacks . | . . . . . . Scanalyzer . | . . . . . . Garrison Access Hacks 1 | . . . . 1 . Unlock Access 1 | . . . . 1 . Unauthorized Hacks 13 | . 3 . 3 7 . Terminals 13 | . 3 . 3 7 . Track 3 | . . . 1 2 . Assimilate 2 | . . . 1 1 . Botnet 8 | . 3 . 1 4 . Fabricators . | . . . . . . Repair Stations . | . . . . . . Recycling Units . | . . . . . . Scanalyzers . | . . . . . . Garrison Access . | . . . . . . Data Cores Recovered . | . . . . . . Used . | . . . . . . Hacking Detections 6 | . 2 . 2 2 . Full Trace Events 2 | . 1 . 1 . . Feedback Events . | . . . . . . Feedback Blocked . | . . . . . . Robot Schematics Acquired . | . . . . . . Robots Built . | . . . . . . Authchips . | . . . . . . Time . | . . . . . . Total Robot Build Rating . | . . . . . . Part Schematics Acquired . | . . . . . . Parts Built . | . . . . . . Authchips . | . . . . . . Time . | . . . . . . Total Part Build Rating . | . . . . . . Parts Repaired . | . . . . . . Time . | . . . . . . Parts Recycled . | . . . . . . Recycled Matter . | . . . . . . Retrieved Matter . | . . . . . . Retrieved Components . | . . . . . . Parts Scanalyzed . | . . . . . . Part Schematics Acquired . | . . . . . . Parts Damaged . | . . . . . . Bothacking | -11 -10 -10 -9 -8 -8 ------------ Run | Yrd Mat Min Mat Mat Gar Used RIF Installer . | . . . . . . Robots Hacked . | . . . . . . Non-combat . | . . . . . . Combat . | . . . . . . Robot Hacks Applied . | . . . . . . Relay Couplers Released . | . . . . . . Fabnet Peak Effective % . | . . . . . . Robots Rewired . | . . . . . . Allies Hacked . | . . . . . . Hacks Repelled . | . . . . . . Allies | -11 -10 -10 -9 -8 -8 -------- Run | Yrd Mat Min Mat Mat Gar Total Allies 1 | . . . . 1 . Largest Group 1 | . . . . 1 . Highest-Rated Group 10 | . . . . 10 . Highest-Rated Ally 10 | . . . . 10 . Total Orders . | . . . . . . Ally Attacks . | . . . . . . Total Damage . | . . . . . . Kills . | . . . . . . Allies Corrupted . | . . . . . . Allies Melted . | . . . . . . Intel | -11 -10 -10 -9 -8 -8 ------- Run | Yrd Mat Min Mat Mat Gar Robot Analysis Total . | . . . . . . Derelict Logs Recovered 1 | . . 1 . . . Drone Launches . | . . . . . . Drone Recoveries . | . . . . . . Exploration | -11 -10 -10 -9 -8 -8 ------------- Run | Yrd Mat Min Mat Mat Gar Turns Passed 2432 | 71 226 112 516 1236 271 Spaces Moved 1325 | 65 200 102 294 581 83 Core 13 | 12 . . . . 1 Treads 579 | . . . . 500 79 Legs 151 | . . . 70 81 . Wheels 579 | 53 200 102 224 . . Hover . | . . . . . . Flight 3 | . . . . . 3 Fastest Speed 50 | 50 90 105 105 152 114 Average Speed 139 | 82 97 105 135 163 175 Slowest Speed 750 | 90 115 105 190 232 750 Overloaded Moves . | . . . . . . Propulsion Burnouts . | . . . . . . Robots Hopped . | . . . . . . Cave-ins Triggered . | . . . . . . Exploration Rate (%) 24 | 3 34 28 24 41 19 Regions Visited 5 Branch Regions 1 Pre-discovered Areas 1 | . . 1 . . . Known Exits Taken 2 | . 1 . . 1 . Unknown Exits Taken 3 | 1 . 1 1 . . Scrap Searched . | . . . . . . Spaces Dug . | . . . . . . Terrain Destroyed 14 | . . . . 14 . Melee . | . . . . . . Projectile 14 | . . . . 14 . AOE . | . . . . . . Terrain Rammed . | . . . . . . Walls Destroyed . | . . . . . . Machines Disabled . | . . . . . . Actions | -11 -10 -10 -9 -8 -8 --------- Run | Yrd Mat Min Mat Mat Gar Total 1649 | 82 221 103 354 749 140 Wait 6 | . . . . 6 . Move 1320 | 64 199 101 293 580 83 Hop . | . . . . . . Pick Up 71 | 12 9 . 15 35 . Fast Attach . | . . . . . . Attach 36 | 6 5 . 4 21 . Detach 1 | . . . . 1 . Swap 23 | . 1 . 6 9 7 Drop 27 | . 1 . 6 20 . Fire 127 | . 5 2 30 56 34 Melee 21 | . . . . 21 . Ram 1 | . 1 . . . . Kick . | . . . . . . Crush . | . . . . . . Escape Stasis 16 | . . . . . 16 Rewire . | . . . . . . Trap . | . . . . . . Miscellaneous . | . . . . . . Route ------- -11/Scrapyard -10/Materials (discovered 2 exits: *Min x2) -10/Mines -9/Materials -8/Materials -8/Garrison History --------- Turn | Location | Event 17 | -11/Scrapyard | Discovered new exit (range 14) 72 | -11/Scrapyard | Entered Materials 218 | -10/Materials | Identified exit to Mines 298 | -10/Materials | Entered Mines 308 | -10/Mines | Build established: Mutant 342 | -10/Mines | Learned location of Recycling (-9) 370 | -10/Mines | Discovered new exit (range 7) 410 | -10/Mines | Entered Materials 410 | -9/Materials | Evolved 2 slots: Propulsion x1, Utility x1 909 | -9/Materials | Discovered new exit (range 4) 926 | -9/Materials | Entered another Materials area 926 | -8/Materials | Evolved 2 slots: Power x1, Utility x1 1064 | -8/Materials | Build established: Scavenger-Mutant 1158 | -8/Materials | Core integrity fell below 50% 1223 | -8/Materials | Lost 11 parts (4p3n1u3w) 2161 | -8/Materials | Identified exit to Garrison 2162 | -8/Materials | Entered Garrison 2325 | -8/Garrison | Destroyed 10 combat bots 2358 | -8/Garrison | Triggered checkpoint 2381 | -8/Garrison | Core integrity fell below 20% 2417 | -8/Garrison | Triggered checkpoint 2433 | -8/Garrison | Destroyed by G-47 Trooper with Particle Gun Last Messages --------------- S-10 Pest knocked back. S-10 Pest destroyed. G-47 Trooper knocked back. Destroyed Lgt. Nuclear Core. G-47 Trooper knocked back. Acquired 14 matter. G-47 Trooper knocked back. Adv. Treads destroyed. G-47 Trooper knocked back. Acquired 10 matter. Garrison Door breached. Beams of light sweep through the air. An alarm sounds. Acquired 17 matter. Lgt. Treads destroyed. Imp. Deuterium Engine destroyed. KKKUZ3 2CZ4TWAV, 5WM:TXXXILS:=RF43NPG34G Acquired 4 matter. Imp. Deuterium Engine destroyed. Imp. Light Armor Plating destroyed. Map ----- +----------------------------------------------------+ | ?????????????????????????????????????????????????? | | ?????????????????????????????????????????????????? | | ?????????????????????????????????????????????????? | | ?????????????????????????????????????????????????? | | ?????????????????????????????????????????????????? | | ?????????????????????????????????????????????????? | | ?????????????????????????????????????????????????? | | ?????????????????????????????????????????????????? | | ?????????????????????????????????????????###?????? | | ????????????????????????????????????????? #?????? | | ?????????????????????????????????????????# #?????? | | ?????????????????????????????????????????# #?????? | | ?????????????????????????????????????????# #???### | | ?????????????????????????????????????????# #???# | | ???????????????????????????????????????### ##### | | ??????????????????????????????#????????# | | ??????????????????###????????? ????????#^ ^ | | ?????????????????? ?????????%????????# ######## | | ?????????????????? ????????#=#???????# #??????? | | ??????????????????# ????????+!+???????# #??????? | | ??????????????????# #???????#%#???????# #??????? | | ??????????????????# #???????#=#???????# #??????? | | ??????????????????# #???????#[!???????# #??????? | | ??????????????????# #???????#%#???????# #??????? | | ??????????????????# #######?# #???????# #??????? | | ??????????????????# ## @ #?# #???????# #??????? | | ?????????????????##![## =###"##??????# #??????? | | ????????????###### [[ * ######## #??????? | | ????????# % % = g= = = #??????? | | ????????# %= [ [ #??????? | | ????????########## ## ## * ###########??????? | | ?????????????????# ## ## ###??????????????? | | ?????????????????" gg ! #??????????????? | | ?????????????????" ! !#??????????????? | | ?????????????????" [ #??????????????? | | ?????????????????" g #??????????????? | | ?????????????????# ## % g## ###??????????????? | | ?????????????????# ?# ## #????????????????? | | ?????????????????# ????????????????? | | ?????????????????# ???????????????? | | ?????????????????# ##???????????????? | | ?????????????????# ## ## ##????????????????? | | ?????????????????# ?? ## ^#?????????????????? | | ?????????????????? ??####?# ??????????????????? | | ????????????????????????????# ??????????????????? | | ????????????????????????????# ??????????????????? | | ????????????????????????????# ??????????????????? | | ????????????????????????????# ??????????????????? | | ????????????????????????????? ??????????????????? | | ?????????????????????????????????????????????????? | +----------------------------------------------------+ Best States ------------- Heat Dissipation 45 Energy Generation 27 Energy Capacity 480 Matter Stores 300 Matter Capacity 300 Sight Range 16 Terrain Scan Range 14 Terrain Scan Density 10 Additional Mass Support 9 Armor Coverage 150 Resistance: KI 20 Resistance: TH 20 Resistance: EX 20 Resistance: EM 20 Resistance: I 20 Resistance: S 20 Resistance: P 20 Weapon Shielding 66 Evasion (%) 50 Recoil Reduction 3 Offensive Hacking 10 Item Schematics ----------------- None Robot Schematics ------------------ None Fabricated ------------ Nothing Alien Tech Used ----------------- None Achievements -------------- None Challenges ------------ None Game ------ Seed GaussCentriumLink Manual? 0 Play Time 00:26:40 Cumulative 30.3 hours Start 2024.10.19 @ 11:14:36 End 2024.10.19 @ 11:41:38 Sessions 1 Manual Loads 0 Difficulty Adventurer Special Mode None Game No. 77 Rogue 55 Adventurer 22 Explorer 0 Win Type - Total 1 Types 1/0/0/0/0/0/0/0/0 Lore% 14 Gallery% 39 Achievement% 33 Wizard Run 0 Options --------- Layout 1 ASCII 0 Keyboard 0 Movement Arrows Keybinds 0 Fullscreen 1 Font 36/Smallcaps Map View 55x43 Zoom Use 0% Tactical HUD 0 Map Filters NONE Filters NONE Steam 1 RUN: fae0e214-3ef8-49b0-8a35-4bf6a92d671e